Cogmind - Beta 13 X1 @@@ ROGUE MODE // 2023.09.09 @ 05:45:06 Player: maxwell Result: Destroyed by Y-72 Warden with Quantum Rifle Performance ------------- Evolutions (8) 4000 Regions Visited (32) 6400 Robots Destroyed (80) 400 Value Destroyed (2355) 2355 Prototype IDs (72) 1440 Alien Tech Used (10) 2000 Bonus (9033) 9033 TOTAL SCORE: 25628 Bonus ------- Triggered Max Security 3000 High Alert Combat Kills 34 Follower Combat Kills 1053 Network Hubs Disabled 200 Aligned with FarCom 300 Met Data Miner 300 Met Zhirov 300 Met Warlord at Base 500 MAIN.C Attacked Warlord 500 Warlord Defense Kills 94 Used Core Reset Matrix 3000 Friendly Fire -248 Cogmind --------- Core Integrity 0/1450 Matter 85/425 Energy 94/100 System Corruption 8% Temperature Cool (9) Movement Core (50) Location -2/Section 7 Parts ------- > --- POWER (4) -------- (None) > --- PROPULSION (6) --- (None) > --- UTILITY (11) ----- Spacefold Activator > --- WEAPON (2) ------- Enhanced Nova Cannon > --- INVENTORY (5) ---- Core Expander Integrity Redistributor Fusion Bomb Launcher Peak State ------------ > --- POWER ------------ Light Nuclear Core Vortex Chain Reactor > --- PROPULSION ------- Improved Diametric Drive Improved Diametric Drive Impulse Thruster Array Impulse Thruster Array > --- UTILITY ---------- Advanced Power Amplifier Advanced Weight Redist. System Advanced Melee Analysis Suite Advanced Melee Analysis Suite Advanced Reaction Control System Experimental Phase Shifter Hacking Suite Hacking Suite Ghost Barrier > --- WEAPON ----------- Power Sword Nanosword > --- INVENTORY -------- Micro Antimatter Reactor Impulse Thruster Array Transport Network Coupler Fusion Bomb Launcher [Rating: 142] Favorites ----------- Power Ion Engine Engine Ion Engine Power Core Light Nuclear Core Reactor Light Antimatter Reactor Propulsion Light Treads Treads Light Treads Leg Aluminum Leg Wheel Armored Huge Wheel Hover Unit Cooled Airjet Flight Unit Improved Diametric Drive Utility Hacking Suite Device Advanced Weight Redist. System Storage Medium Storage Unit Processor Advanced Melee Analysis Suite Hackware Hacking Suite Protection Improved Propulsion Shielding Artifact Spacefold Activator Weapon Particle Cannon Energy Gun Pulse Rifle Energy Cannon Particle Cannon Ballistic Gun Light Assault Rifle Ballistic Cannon Gauss Cannon Launcher Tiamat Missile Launcher Special Weapon RU-N14's Throwing Claymores Impact Weapon Heavy Mace Slashing Weapon Power Sword Piercing Weapon Enhanced Force Lance Special Melee Weapon Improved Datajack Build | -11 -10 -10 -9 -9 -9 -8 -8 -7 -7 -7 -7 -6 -6 -6 -6 -6 -5 -5 -5 -5 -5 -5 -4 -4 -4 -4 -3 -3 -3 -2 -2 -2 ------- Run | Jun Mat Min Mat Min Exi Min Mat Fac Low Low Zio Pro Fac Low Low Dat Pro Fac Ext Cet Arc Hub Fac Upp Upp War Pro Res Tes Res Qua Sec Slots Evolved 16 | . . . 2 . . . 2 2 . . . . 2 . . . . 2 . . . . 2 . . . . 2 . 2 . . Power 3 | . . . . . . . . 1 . . . . 1 . . . . . . . . . . . . . . 1 . . . . Propulsion 4 | . . . 2 . . . . . . . . . 1 . . . . 1 . . . . . . . . . . . . . . Utility 9 | . . . . . . . 2 1 . . . . . . . . . 1 . . . . 2 . . . . 1 . 2 . . Weapon . | . . . . . . . . . . . . . . . . . . . . . . . . . . . . . . . . . Parts Attached 250 | . 12 4 17 2 6 1 7 14 8 2 4 2 10 1 2 1 3 12 31 . . 13 10 5 2 28 2 12 6 20 5 8 Power 47 | . 1 . . 1 . . 2 2 1 . . . 1 . 1 . 1 2 7 . . 1 1 2 1 9 1 6 1 6 . . Engine 13 | . 1 . . 1 . . 1 2 1 . . . . . 1 . . . 5 . . 1 . . . . . . . . . . Core 19 | . . . . . . . 1 . . . . . 1 . . . 1 2 2 . . . 1 2 1 5 . 3 . . . . Reactor 15 | . . . . . . . . . . . . . . . . . . . . . . . . . . 4 1 3 1 6 . . Propulsion 73 | . 4 2 9 1 1 . . 4 2 . . . 4 . . . . 5 8 . . 5 2 3 1 6 . 3 2 7 1 3 Treads 13 | . 4 2 5 . . . . . . . . . . . . . . . 2 . . . . . . . . . . . . . Leg . | . . . . . . . . . . . . . . . . . . . . . . . . . . . . . . . . . Wheel 4 | . . . . 1 . . . . . . . . . . . . . 3 . . . . . . . . . . . . . . Hover 25 | . . . 4 . 1 . . 3 . . . . 4 . . . . 2 5 . . 4 1 . . . . . . 1 . . Flight 31 | . . . . . . . . 1 2 . . . . . . . . . 1 . . 1 1 3 1 6 . 3 2 6 1 3 Utility 68 | . 3 1 3 . 2 . 4 3 1 . 2 . 4 1 . 1 1 3 8 . . 4 7 . . 9 . 2 1 3 3 2 Device 27 | . 2 1 2 . . . . 1 1 . . . . 1 . . . 1 2 . . . 6 . . 7 . 2 . 1 . . Storage 4 | . 1 . . . . . 1 1 . . . . . . . . . . . . . . . . . . . . . . 1 . Processor 18 | . . . 1 . . . 2 1 . . 2 . 2 . . . 1 . 2 . . 2 1 . . 1 . . . 2 1 . Hackware 13 | . . . . . 2 . . . . . . . 2 . . 1 . 2 2 . . 1 . . . 1 . . 1 . 1 . Protection 4 | . . . . . . . 1 . . . . . . . . . . . 2 . . 1 . . . . . . . . . . Artifact 2 | . . . . . . . . . . . . . . . . . . . . . . . . . . . . . . . . 2 Weapon 62 | . 4 1 5 . 3 1 1 5 4 2 2 2 1 . 1 . 1 2 8 . . 3 . . . 4 1 1 2 4 1 3 Energy Gun 8 | . 2 . 4 . . . . . . 1 . . . . . . . . . . . . . . . 1 . . . . . . Energy Cannon 10 | . 2 . 1 . 3 1 . 1 . . . . . . . . . . . . . . . . . 1 . . . . . 1 Ballistic Gun 3 | . . . . . . . 1 . 2 . . . . . . . . . . . . . . . . . . . . . . . Ballistic Cannon 1 | . . . . . . . . 1 . . . . . . . . . . . . . . . . . . . . . . . . Launcher 6 | . . . . . . . . 2 . . . . 1 . . . . . 1 . . 1 . . . . . 1 . . . . Special Weapon 4 | . . . . . . . . . . . 1 1 . . . . . . 2 . . . . . . . . . . . . . Impact Weapon 2 | . . 1 . . . . . . . 1 . . . . . . . . . . . . . . . . . . . . . . Slashing Weapon 16 | . . . . . . . . . . . 1 1 . . . . 1 2 5 . . 1 . . . 2 . . 2 . 1 . Piercing Weapon 5 | . . . . . . . . . . . . . . . . . . . . . . . . . . . 1 . . 2 . 2 Special Melee Weapon 7 | . . . . . . . . 1 2 . . . . . 1 . . . . . . 1 . . . . . . . 2 . . Unidentified Prototypes 19 | . . . 2 . . . . 2 . . 1 . . . . . . . . . . . 1 . . 7 . . 2 1 3 . Corrupted Parts 1 | . . 1 . . . . . . . . . . . . . . . . . . . . . . . . . . . . . . System Corruption 4 | . . 4 . . . . . . . . . . . . . . . . . . . . . . . . . . . . . . Parts Lost 79 | . 1 . . 1 . . 3 2 3 . . . . . 2 4 5 6 12 1 . 3 5 1 . . . . 13 4 . 13 Power 18 | . 1 . . . . . 1 1 1 . . . . . 1 2 1 . 3 . . 1 . 1 . . . . 3 . . 2 Propulsion 30 | . . . . 1 . . 1 . . . . . . . 1 2 2 2 5 . . 1 4 . . . . . 3 1 . 7 Utility 23 | . . . . . . . 1 1 . . . . . . . . 1 4 3 1 . . 1 . . . . . 6 3 . 2 Weapon 8 | . . . . . . . . . 2 . . . . . . . 1 . 1 . . 1 . . . . . . 1 . . 2 Highest Loss Streak 13 | . 1 . . 1 . . 2 2 3 . . . . . 1 4 5 4 6 1 . 1 3 1 . . . . 13 4 . 5 To Critical Strikes 1 | . . . . . . . . . . . . . . . 1 . . . . . . . . . . . . . . . . . Average Slot Usage (%) 72 | . 98 99 91 12 29 44 48 70 89 79 90 92 90 93 87 84 60 54 57 60 58 76 75 83 89 85 87 76 70 23 67 48 Engine 5 | . 13 14 11 3 11 11 . 8 12 7 7 7 6 6 1 6 . . 5 . . 2 5 2 . . . . . . . . Core 2 | . . . . . . . 6 . . . . . 4 6 6 6 4 . 2 5 5 2 . 7 10 6 10 4 3 . . . Treads 7 | . 27 27 34 4 . . . . . . . . . . . . . . . 11 11 5 . . . . . . . . . . Hover 6 | . . . 1 . 9 11 8 16 9 7 7 7 29 33 32 24 11 4 10 5 5 14 15 7 4 . . . . . . . Flight 6 | . . . . . . . . 1 20 23 23 23 2 . . . . . . 5 5 6 2 13 21 25 21 19 17 6 26 16 Device 7 | . 13 14 10 1 . . . 1 8 7 7 7 . 4 6 5 . . 2 5 5 4 8 10 10 14 15 18 16 . 4 1 Storage 3 | . 14 14 11 1 . . . . . . . . . . . . . . . . . . . . . . . . . . 4 2 Processor 7 | . . . . . . . 11 16 15 15 21 23 14 13 13 13 13 12 4 . . 9 13 15 15 10 10 9 8 1 10 9 Hackware 9 | . . . . . 1 22 15 7 7 7 7 7 17 14 13 13 18 15 22 17 17 17 15 15 15 15 15 14 14 6 7 7 Energy Cannon 5 | . 20 27 11 . 7 . . . . . . . . . . . . . . . . . . . . . . . . . . . Slashing Weapon 2 | . . . . . . . . . . . 3 7 6 6 6 6 5 7 3 5 5 4 5 5 5 3 5 4 3 . 3 2 Special Melee Weapon 1 | . . . . . . . . 5 5 . . . . . 1 6 5 . . . . 3 5 5 5 2 . . . 3 . . Naked Turns 255 | . . . . 237 . . . . . . . . . . . . . . . . . . . . . . . . . . . 18 Heaviest Build 61 | 13 24 24 24 22 25 3 10 24 31 17 22 22 30 33 36 28 10 28 31 11 9 15 26 35 40 61 46 51 51 39 44 44 Greatest Support 84 | 20 40 40 80 80 8 8 8 36 33 28 24 28 55 55 55 43 22 84 35 18 18 37 40 36 40 54 54 55 57 49 50 50 Greatest Overweight (x) 7 | . . . 7 . 3 . 2 . . . . . . . . 1 1 . 2 . . . . 1 . 1 . 1 . 2 . 1 Average Overweight (x) . | . . . . . . . . . . . . . . . . . . . . . . . . . . . . . . . . . Largest Inventory Capacity 10 | . 10 10 10 10 5 5 8 10 5 5 5 5 5 5 5 5 5 5 5 5 5 5 5 5 5 5 5 5 5 5 10 10 Average Capacity 6 | . 9 10 10 5 5 5 5 5 5 5 5 5 5 5 5 5 5 5 5 5 5 5 5 5 5 5 5 5 5 5 9 7 Most Carried 10 | . 10 10 10 10 5 5 5 5 5 5 5 5 5 5 5 5 5 5 5 4 4 5 5 5 5 5 5 5 5 4 9 10 Average Carried 5 | . 8 9 9 5 4 4 4 4 4 5 4 4 4 4 5 4 4 4 4 4 4 4 4 5 5 4 5 4 4 3 7 6 Final Capacity 10 | 8 10 10 10 5 5 5 5 5 5 5 5 5 5 5 5 5 5 5 5 5 5 5 5 5 5 5 5 5 5 5 10 5 Final Carried 10 | 6 10 10 10 5 5 5 5 4 5 5 5 5 5 5 5 5 5 5 4 4 4 4 5 5 5 5 5 5 2 4 9 3 Class Distribution -------------------- 34% | Mutant 30% | Hacker-Mutant 10% | Hacker-Sprinter 8% | Scavenger-Sprinter 8% | Scavenger-Mutant 5% | Sprinter Dominant Class ---------------- Mutant | -10/Materials Mutant | -10/Mines Scavenger-Mutant | -9/Materials Mutant | -9/Mines Mutant | -9/Exiles Hacker-Mutant | -8/Mines Hacker-Mutant | -8/Materials Mutant | -7/Factory Sprinter | -7/Lower Caves Sprinter | -7/Lower Caves Sprinter | -7/Zion Sprinter | -6/Proximity Caves Hacker-Mutant | -6/Factory Hacker-Mutant | -6/Lower Caves Hacker-Mutant | -6/Lower Caves Hacker-Mutant | -6/Data Miner Hacker-Mutant | -5/Proximity Caves Hacker-Mutant | -5/Factory Hacker-Mutant | -5/Extension Hacker-Mutant | -5/Cetus Hacker-Mutant | -5/Archives Scavenger-Mutant | -5/Hub_04(d) Scavenger-Mutant | -4/Factory Scavenger-Sprinter | -4/Upper Caves Scavenger-Sprinter | -4/Upper Caves Scavenger-Sprinter | -4/Warlord Hacker-Sprinter | -3/Proximity Caves Hacker-Sprinter | -3/Research Hacker-Sprinter | -3/Testing Mutant | -2/Research Scavenger-Sprinter | -2/Quarantine Scavenger-Sprinter | -2/Section 7 Resources | -11 -10 -10 -9 -9 -9 -8 -8 -7 -7 -7 -7 -6 -6 -6 -6 -6 -5 -5 -5 -5 -5 -5 -4 -4 -4 -4 -3 -3 -3 -2 -2 -2 ----------- Run | Jun Mat Min Mat Min Exi Min Mat Fac Low Low Zio Pro Fac Low Low Dat Pro Fac Ext Cet Arc Hub Fac Upp Upp War Pro Res Tes Res Qua Sec Matter Collected 2800 | 200 204 39 187 20 60 10 . 42 212 24 49 . 32 74 126 . 20 27 542 . . 83 27 205 43 270 30 120 . 117 . 37 Remotely . | . . . . . . . . . . . . . . . . . . . . . . . . . . . . . . . . . Salvage Created 4077 | . 459 353 488 . . . . 37 213 . . . 189 10 168 . 211 27 715 . . 228 129 203 118 67 95 332 . . . 35 Parts 195 | . 36 19 26 . . . . 2 4 . . 2 8 1 2 . . 2 32 . . 16 5 6 2 7 4 17 . . . 4 Haulers Intercepted 10 | . 2 . 3 . . . . 1 . . . . . . . . . . 1 . . 1 1 . . . . 1 . . . . Recyclers Shooed 1 | . . . 1 . . . . . . . . . . . . . . . . . . . . . . . . . . . . . Parts Field Recycled . | . . . . . . . . . . . . . . . . . . . . . . . . . . . . . . . . . Retrieved Matter . | . . . . . . . . . . . . . . . . . . . . . . . . . . . . . . . . . Parts Self-Destructed 27 | . . . . . . . . . 1 . . 1 . . 6 . . . . . . . . 4 7 . 8 . . . . . Prevented 4 | . . . . . . . . . 1 . . . . 3 . . . . . . . . . . . . . . . . . . Kills | -11 -10 -10 -9 -9 -9 -8 -8 -7 -7 -7 -7 -6 -6 -6 -6 -6 -5 -5 -5 -5 -5 -5 -4 -4 -4 -4 -3 -3 -3 -2 -2 -2 ------- Run | Jun Mat Min Mat Min Exi Min Mat Fac Low Low Zio Pro Fac Low Low Dat Pro Fac Ext Cet Arc Hub Fac Upp Upp War Pro Res Tes Res Qua Sec Combat Hostiles Destroyed 42 | . 9 9 5 . . . . . . . . 1 . . . . . . 7 . . . . 3 . 1 3 4 . . . . Melee 13 | . . . . . . . . . . . . . . . . . . . 2 . . . . 3 . 1 3 4 . . . . Guns 5 | . 4 . 1 . . . . . . . . . . . . . . . . . . . . . . . . . . . . . Cannons 18 | . 5 9 4 . . . . . . . . . . . . . . . . . . . . . . . . . . . . . AOE 6 | . . . . . . . . . . . . 1 . . . . . . 5 . . . . . . . . . . . . . Classes Destroyed 18 | . 5 1 3 . . . . . 1 . . 1 1 1 . . . . 2 . . . . 1 . 1 . 1 . . . . Worker 6 | . 1 . 1 . . . . . . . . . . . . . . . . . . 4 . . . . . . . . . . Builder 4 | . . . . . . . . . . . . . . . . . . . 2 . . 1 1 . . . . . . . . . Tunneler 1 | . . . . . . . . . . . . . 1 . . . . . . . . . . . . . . . . . . . Hauler 10 | . 2 . 3 . . . . 1 . . . . . . . . . . 1 . . 1 1 . . . . 1 . . . . Recycler 4 | . . . 1 . . . . . . . . . 1 . . . . . 2 . . . . . . . . . . . . . Minesweeper 1 | . . . . . . . . . . . . . . 1 . . . . . . . . . . . . . . . . . . Operator 5 | . . . 2 . . . . . . . . . 1 . . . . 1 . . . 1 . . . . . . . . . . Drone 1 | . . . . . . . . . . . . 1 . . . . . . . . . . . . . . . . . . . . Watcher 6 | . 1 . 1 . . . . . . . . . . . . . . . . . . 1 . . . . . 2 . . . 1 Swarmer 17 | . 3 3 . . . . . . . . . . . . . . . . 3 . . . . 2 . . 3 3 . . . . Grunt 13 | . 6 4 2 . . . . . . . . . . . . . . . 1 . . . . . . . . . . . . . Duelist 1 | . . . 1 . . . . . . . . . . . . . . . . . . . . . . . . . . . . . Protector 1 | . . . . . . . . . . . . . . . . . . . . . . . . . . 1 . . . . . . Sentry 6 | . . 2 2 . . . . . . . . . . . . . . . 2 . . . . . . . . . . . . . Hunter 1 | . . . . . . . . . . . . . . . . . . . 1 . . . . . . . . . . . . . Programmer 1 | . . . . . . . . . . . . . . . . . . . . . . . . . . . . 1 . . . . Packrat 1 | . . . . . . . . . . . . . . . . . . . . . . . . 1 . . . . . . . . Samaritan 3 | . . . . . . . . . 2 . . . . . . . . . . . . . . . 1 . . . . . . . Thug 1 | . . . . . . . . . . . . . . . . . . . 1 . . . . . . . . . . . . . Mutant 1 | . . . . . . . . . . . . . . . . . . . . . . . . 1 . . . . . . . . Best Kill Streak 5 | . 4 2 3 . . . . 1 . . . 1 2 1 . . . 1 5 . . 4 1 2 . 1 3 3 . . . 1 Combat Bots Only 4 | . 3 2 2 . . . . . . . . 1 . . . . . . 4 . . . . 2 . 1 3 3 . . . . Max Kills in Single Turn 3 | . 2 1 1 . . . . 1 1 . . 1 1 1 . . . 1 3 . . 3 1 1 1 1 1 1 . . . 1 Gunslinging . | . . . . . . . . . . . . . . . . . . . . . . . . . . . . . . . . . Exploded 2 | . . . . . . . . . . . . 1 . . . . . . 2 . . . . . . . . . . . . . Melee 1 | . . . . . . . . . . . . . . . . . . . 1 . . . . 1 . 1 1 1 . . . . Uniques/NPCs Destroyed . | . . . . . . . . . . . . . . . . . . . . . . . . . . . . . . . . . Combat | -11 -10 -10 -9 -9 -9 -8 -8 -7 -7 -7 -7 -6 -6 -6 -6 -6 -5 -5 -5 -5 -5 -5 -4 -4 -4 -4 -3 -3 -3 -2 -2 -2 -------- Run | Jun Mat Min Mat Min Exi Min Mat Fac Low Low Zio Pro Fac Low Low Dat Pro Fac Ext Cet Arc Hub Fac Upp Upp War Pro Res Tes Res Qua Sec Damage Taken 11499 | . 679 259 59 339 . . 343 250 167 14 . 123 38 39 162 326 481 1025 891 413 . 288 426 120 32 35 80 199 1435 842 80 2354 Core 4282 | . 111 38 . 297 . . 128 68 46 14 . 39 . 16 11 138 366 282 247 29 . 41 100 31 . . 34 . 408 504 . 1334 Absorbed by Shields 111 | . . . . . . . . . . . . . . . . . . . . . . . . . . 34 77 . . . . . Redirected to Shielding 325 | . . . . . . . 66 35 . . . . . . . . . . . 116 . 29 79 . . . . . . . . . Regen/Repaired (Parts) 219 | . . . . . . . . . . . . . . . . . . . . . . . . . . 66 . . . . 34 119 Core Remaining (%) 60 | 100 . 40 . . . 25 76 . . . . 76 . . . . 37 . . . . 40 . . . . 85 . 68 . . . Volleys Fired 142 | . 46 21 26 . 1 . . 4 20 . . 1 . . . . . . 14 . . 1 . . . 7 . . . . . 1 Largest 2 | . 2 2 2 . 1 . . 1 1 . . 1 . . . . . . 1 . . 1 . . . 1 . . . . . 1 Hottest 250 | . 136 136 136 . 250 . . 48 28 . . . . . . . . . 46 . . 46 . . . 225 . . . . . 120 Shots Fired 238 | . 92 42 52 . 1 . . 4 20 1 . 1 . . . . . . 15 . . 1 . . . 7 . . . . . 2 Gun 108 | . 52 . 28 . . . . . 20 1 . . . . . . . . . . . . . . . 7 . . . . . . Cannon 113 | . 40 42 24 . 1 . . 4 . . . . . . . . . . . . . . . . . . . . . . . 2 Launcher 6 | . . . . . . . . . . . . . . . . . . . 5 . . 1 . . . . . . . . . . Special 11 | . . . . . . . . . . . . 1 . . . . . . 10 . . . . . . . . . . . . . Kinetic 76 | . 52 . . . . . . 4 20 . . . . . . . . . . . . . . . . . . . . . . . Thermal 145 | . 40 42 52 . 1 . . . . 1 . . . . . . . . . . . . . . . 7 . . . . . 2 Explosive 17 | . . . . . . . . . . . . 1 . . . . . . 15 . . 1 . . . . . . . . . . Electromagnetic . | . . . . . . . . . . . . . . . . . . . . . . . . . . . . . . . . . Robot Hit Streak 13 | . 8 10 8 . . . . 5 13 . . . . . . . . . 4 . . . . . . . . . . . . . Robot Miss Streak 4 | . 4 2 3 . . . . 2 1 . . . . . . . . . . . . . . . . . . . . . . . Penetration Max . | . . . . . . . . . . . . . . . . . . . . . . . . . . . . . . . . . Secondary Targets 1 | . 1 . . . . . . . . . . . . . . . . . . . . . . . . . . . . . . . Max Gunslinging Chain 1 | . 1 . . . . . . . . . . . . . . . . . . . . . . . . . . . . . . . Shots Hit Robots 212 | . 46 24 32 . . . . 3 18 . . . 4 2 3 1 7 2 26 . . 6 4 8 4 6 5 7 1 2 . 1 Core Hits 113 | . 20 11 14 . . . . 1 8 . . . 2 1 2 . 2 1 17 . . 13 2 5 2 1 3 7 . . . 1 Critical Kills . | . . . . . . . . . . . . . . . . . . . . . . . . . . . . . . . . . Critical Parts Destroyed . | . . . . . . . . . . . . . . . . . . . . . . . . . . . . . . . . . Critical Strikes 5 | . . . 1 . . . . . . . . . . . . . . . 3 . . . . . . . 1 . . . . . Burn 1 | . . . 1 . . . . . . . . . . . . . . . . . . . . . . . . . . . . . Sever 4 | . . . . . . . . . . . . . . . . . . . 3 . . . . . . . 1 . . . . . Melee Attacks 248 | . . . . . . . . 1 1 . 1 . 10 3 5 14 7 15 50 . . 15 11 9 6 12 6 35 14 5 7 21 Impact 1 | . . . . . . . . . . . 1 . . . . . . . . . . . . . . . . . . . . . Slashing 225 | . . . . . . . . . . . . . 10 3 5 14 7 15 50 . . 14 11 9 6 6 6 35 14 . 6 14 Piercing 11 | . . . . . . . . . . . . . . . . . . . . . . . . . . . . . . 3 1 7 Sneak Attacks 28 | . . . . . . . . 1 1 . . . 2 1 . 1 . . 7 . . 2 2 1 2 5 . 1 . 2 . . Combat Hostiles 1 | . . . . . . . . . . . . . . . . . . . 1 . . . . . . . . . . . . . Follow-up Attacks 1 | . . . . . . . . . . . . . . . . . . . 1 . . . . . . . . . . . . . Damage Inflicted 8656 | . 753 529 602 . . . . 59 345 . . 117 284 132 206 117 519 99 1851 . . 1029 325 411 351 53 246 446 58 . . 124 Guns 1068 | . 399 . 324 . . . . . 345 . . . . . . . . . . . . . . . . . . . . . . . Cannons 1185 | . 352 503 271 . . . . 59 . . . . . . . . . . . . . . . . . . . . . . . . Explosions 1367 | . . . . . . . . . . . . 117 . . . . . . 545 . . 705 . . . . . . . . . . Melee 4942 | . . . . . . . . . . . . . 284 132 206 117 519 99 1268 . . 324 307 411 351 53 246 443 58 . . 124 Ramming 56 | . 2 26 7 . . . . . . . . . . . . . . . . . . . 18 . . . . 3 . . . . Kinetic 803 | . 399 . . . . . . 59 345 . . . . . . . . . . . . . . . . . . . . . . . Thermal 1450 | . 352 503 595 . . . . . . . . . . . . . . . . . . . . . . . . . . . . . Explosive 662 | . . . . . . . . . . . . 117 . . . . . . 545 . . . . . . . . . . . . . Electromagnetic 705 | . . . . . . . . . . . . . . . . . . . . . . 705 . . . . . . . . . . Impact . | . . . . . . . . . . . . . . . . . . . . . . . . . . . . . . . . . Slashing 4980 | . . . . . . . . . . . . . 284 132 206 117 519 99 1306 . . 324 307 411 351 53 246 443 58 . . 124 Piercing . | . . . . . . . . . . . . . . . . . . . . . . . . . . . . . . . . . Highest Corruption 32 | . . 4 . . . . . . 1 1 1 . . . . . . 15 31 31 31 32 5 5 5 5 . . . . . 8 Average Corruption 14 | . . 4 . . . . . . 1 1 1 . . . . . . 14 18 31 31 31 1 5 5 5 . . . . . 4 Corruption Purged 4 | . . . . . . . . . . . . . . . . . . . 4 . . . . . . . . . . . . . Corruption Blocked 3 | . . . . . . . . . . . . . . . . . . . 3 . . . . . . . . . . . . . Effects 89 | . . . . . . . . . . 1 . . . . . . . 8 42 4 1 15 1 8 4 . . . . . . 5 Message Errors 24 | . . . . . . . . . . . . . . . . . . 3 10 1 1 4 1 2 1 . . . . . . 1 Matter Fused 18 | . . . . . . . . . . . . . . . . . . 2 7 . . 4 . 3 1 . . . . . . 1 Heat Flow Errors 8 | . . . . . . . . . . . . . . . . . . . 2 1 . 3 . . 1 . . . . . . 1 Energy Discharges 8 | . . . . . . . . . . . . . . . . . . 1 4 . . 1 . 1 1 . . . . . . . Parts Rejected 1 | . . . . . . . . . . . . . . . . . . . . . . . . . . . . . . . . 1 Parts Fused 2 | . . . . . . . . . . . . . . . . . . . 2 . . . . . . . . . . . . . Data Loss (minor) 6 | . . . . . . . . . . . . . . . . . . . 5 . . . . 1 . . . . . . . . Data Loss (major) 9 | . . . . . . . . . . . . . . . . . . . 6 2 . . . 1 . . . . . . . . Misfires 3 | . . . . . . . . . . 1 . . . . . . . . 1 . . . . . . . . . . . . 1 Alerts 2 | . . . . . . . . . . . . . . . . . . 1 1 . . . . . . . . . . . . . Misdirections 8 | . . . . . . . . . . . . . . . . . . 1 4 . . 3 . . . . . . . . . . Overload Shots 7 | . . . . . . . . . . . . . . . . . . . . . . . . . . 7 . . . . . . Overflow Damage 676 | . 12 . 1 . . . . . . . . 28 81 80 42 57 174 . 80 . . 67 . 23 28 . . . 3 . . . Projectiles 13 | . 12 . 1 . . . . . . . . . . . . . . . . . . . . . . . . . . . . . Explosions 97 | . . . . . . . . . . . . 28 . . . . . . 30 . . 39 . . . . . . . . . . Melee 566 | . . . . . . . . . . . . . 81 80 42 57 174 . 50 . . 28 . 23 28 . . . 3 . . . Knockbacks . | . . . . . . . . . . . . . . . . . . . . . . . . . . . . . . . . . Impact . | . . . . . . . . . . . . . . . . . . . . . . . . . . . . . . . . . Kinetic . | . . . . . . . . . . . . . . . . . . . . . . . . . . . . . . . . . Secondary . | . . . . . . . . . . . . . . . . . . . . . . . . . . . . . . . . . Self-Inflicted Damage 113 | . . . . . . . . . . . . . . . . . . . . . . 103 9 . . . . 1 . . . . Shots 1 | . . . . . . . . . . . . . . . . . . . . . . 1 . . . . . . . . . . Rammed 12 | . 1 8 1 . . . . . . . . . . . . . . . . . . . 1 . . . . 1 . . . . Targets Rammed 13 | . 1 8 2 . . . . . . . . . . . . . . . . . . . 1 . . . . 1 . . . . Kicked . | . . . . . . . . . . . . . . . . . . . . . . . . . . . . . . . . . Crushed 1 | . . . 1 . . . . . . . . . . . . . . . . . . . . . . . . . . . . . Highest Temperature 326 | . 197 199 199 . 206 . . 16 18 49 . 27 . . . . . . 238 200 . 255 . 48 118 238 208 22 326 210 . 191 Average Temperature 68 | . 103 101 86 . 108 . . 9 11 18 . 11 . . . . . . 103 110 . 99 . 25 35 63 66 2 88 71 . 46 Received Heat Transfer 2002 | . 243 93 24 40 . . 144 78 15 . . 27 18 12 21 . 108 270 90 72 . 45 9 118 . . . 9 431 9 . 126 Effects 1 | . . . . . . . . . . . . . . . . . . . . . . 1 . . . . . . . . . . Energy Bleed 1 | . . . . . . . . . . . . . . . . . . . . . . 1 . . . . . . . . . . Siege Activations . | . . . . . . . . . . . . . . . . . . . . . . . . . . . . . . . . . Robots Corrupted 1 | . . . . . . . . . . . . . . . . . . . . . . 1 . . . . . . . . . . Combat Hostiles . | . . . . . . . . . . . . . . . . . . . . . . . . . . . . . . . . . Parts Fried 1 | . . . . . . . . . . . . . . . . . . . . . . 1 . . . . . . . . . . Impact Corruptions . | . . . . . . . . . . . . . . . . . . . . . . . . . . . . . . . . . Robots Melted . | . . . . . . . . . . . . . . . . . . . . . . . . . . . . . . . . . Combat Hostiles . | . . . . . . . . . . . . . . . . . . . . . . . . . . . . . . . . . Parts Melted 4 | . . 2 2 . . . . . . . . . . . . . . . . . . . . . . . . . . . . . Heat Transferred 2775 | . 629 888 1258 . . . . . . . . . . . . . . . . . . . . . . . . . . . . . Parts Sabotaged 4 | . . . . . . . . . . . . . . . . . . . . . . . . . . . . . . . . 4 Parts Stolen . | . . . . . . . . . . . . . . . . . . . . . . . . . . . . . . . . . Parts Stripped . | . . . . . . . . . . . . . . . . . . . . . . . . . . . . . . . . . Power Chain Reactions . | . . . . . . . . . . . . . . . . . . . . . . . . . . . . . . . . . Missiles Intercepted . | . . . . . . . . . . . . . . . . . . . . . . . . . . . . . . . . . Alert | -11 -10 -10 -9 -9 -9 -8 -8 -7 -7 -7 -7 -6 -6 -6 -6 -6 -5 -5 -5 -5 -5 -5 -4 -4 -4 -4 -3 -3 -3 -2 -2 -2 ------- Run | Jun Mat Min Mat Min Exi Min Mat Fac Low Low Zio Pro Fac Low Low Dat Pro Fac Ext Cet Arc Hub Fac Upp Upp War Pro Res Tes Res Qua Sec Peak Influence 2278 | . 181 166 200 75 . . 307 164 . . . . 325 . . . . 88 529 244 93 516 311 . . . . 257 1818 1193 1714 2278 Initial 1100 | . . 11 13 27 . . . 91 . . . . 228 . . . . . 37 244 93 32 252 . . . . 84 92 1100 554 1100 Average 314 | . 70 58 84 39 . . 111 104 . . . . 244 . . . . 28 272 237 93 134 276 . . . . 139 1676 1093 1645 1899 Maximum Alert Level 5 | . . . 1 . . . 1 . . . . . 1 . . . . . 2 1 . 2 1 . . . . 1 5 4 5 5 Low Security (%) 66 | . 100 100 99 100 . 100 91 100 . . . . 24 . . . . 100 33 . 100 86 5 . . . . 73 . . . . Level 1 15 | . . . . . . . 8 . . . . . 75 . . . . . 40 100 . . 94 . . . . 26 . . . . Level 2 3 | . . . . . . . . . . . . . . . . . . . 26 . . 13 . . . . . . . . . . Level 3 2 | . . . . . . . . . . . . . . . . . . . . . . . . . . . . . . 38 . . Level 4 4 | . . . . . . . . . . . . . . . . . . . . . . . . . . . . . . 61 . . Level 5 . | . . . . . . . . . . . . . . . . . . . . . . . . . . . . . . . . . High Security . | . . . . . . . . . . . . . . . . . . . . . . . . . . . . . . . . . Max Security 7 | . . . . . . . . . . . . . . . . . . . . . . . . . . . . . 99 . 99 99 Squads Dispatched 42 | . 2 . 1 . . . 2 1 . . . . 3 . 1 . . 4 . . . 2 2 . . . . . 6 . 6 12 Investigation 11 | . 1 . . . . . . . . . . . 2 . 1 . . 4 . . . 2 1 . . . . . . . . . Extermination 2 | . . . . . . . . . . . . . 1 . . . . . . . . . 1 . . . . . . . . . Reinforcement 5 | . 1 . 1 . . . 2 1 . . . . . . . . . . . . . . . . . . . . . . . . Assault 24 | . . . . . . . . . . . . . . . . . . . . . . . . . . . . . 6 . 6 12 Garrison . | . . . . . . . . . . . . . . . . . . . . . . . . . . . . . . . . . Intercept . | . . . . . . . . . . . . . . . . . . . . . . . . . . . . . . . . . Searches Triggered 1 | . . . . . . . . . . . . . . . . . . . 1 . . . . . . . . . . . . . Construction Impeded . | . . . . . . . . . . . . . . . . . . . . . . . . . . . . . . . . . Haulers Reinforced 1 | . . . . . . . . 1 . . . . . . . . . . . . . . . . . . . . . . . . Active Scanning Responses . | . . . . . . . . . . . . . . . . . . . . . . . . . . . . . . . . . Cargo Convoy Interrupts . | . . . . . . . . . . . . . . . . . . . . . . . . . . . . . . . . . Stealth | -11 -10 -10 -9 -9 -9 -8 -8 -7 -7 -7 -7 -6 -6 -6 -6 -6 -5 -5 -5 -5 -5 -5 -4 -4 -4 -4 -3 -3 -3 -2 -2 -2 --------- Run | Jun Mat Min Mat Min Exi Min Mat Fac Low Low Zio Pro Fac Low Low Dat Pro Fac Ext Cet Arc Hub Fac Upp Upp War Pro Res Tes Res Qua Sec Distress Signals 23 | . 2 . 2 . . . 1 . . . . 1 . . . . . . 2 1 . 4 . . . 1 . . . 8 . 1 Communications Jammed . | . . . . . . . . . . . . . . . . . . . . . . . . . . . . . . . . . Distress Signals . | . . . . . . . . . . . . . . . . . . . . . . . . . . . . . . . . . Times Spotted 457 | . 21 13 12 20 . . 27 4 8 4 . 17 8 3 19 4 14 17 23 5 . 18 6 5 5 31 5 22 61 12 3 70 Peak Tracking Total 40 | . 3 3 4 12 . . 11 3 8 4 . 15 3 3 13 4 14 10 5 5 . 16 3 4 5 13 5 10 40 8 9 33 Tactical Retreats 54 | . . 2 . 5 . . 6 1 . . . 1 3 1 4 . . 4 3 . . 3 1 . 2 . . 2 4 3 1 8 Traps | -11 -10 -10 -9 -9 -9 -8 -8 -7 -7 -7 -7 -6 -6 -6 -6 -6 -5 -5 -5 -5 -5 -5 -4 -4 -4 -4 -3 -3 -3 -2 -2 -2 ------- Run | Jun Mat Min Mat Min Exi Min Mat Fac Low Low Zio Pro Fac Low Low Dat Pro Fac Ext Cet Arc Hub Fac Upp Upp War Pro Res Tes Res Qua Sec Traps Triggered 8 | . 1 . . . . . . . . . . . 1 . . . . 4 1 . . . 1 . . . . . . . . . Indirectly . | . . . . . . . . . . . . . . . . . . . . . . . . . . . . . . . . . Trap Hack Attempts . | . . . . . . . . . . . . . . . . . . . . . . . . . . . . . . . . . Triggered . | . . . . . . . . . . . . . . . . . . . . . . . . . . . . . . . . . Disarmed . | . . . . . . . . . . . . . . . . . . . . . . . . . . . . . . . . . Reprogrammed . | . . . . . . . . . . . . . . . . . . . . . . . . . . . . . . . . . Reused . | . . . . . . . . . . . . . . . . . . . . . . . . . . . . . . . . . Traps Extracted . | . . . . . . . . . . . . . . . . . . . . . . . . . . . . . . . . . Installed . | . . . . . . . . . . . . . . . . . . . . . . . . . . . . . . . . . Triggered 12 | . . . . . . . . . 1 . . . . 1 . . . . . . . . . . . 10 . . . . . . Most Traps Carried 3 | . . . . . . . . . . . . . . 3 3 3 2 2 2 2 2 2 2 2 2 2 . . . . . . Machines | -11 -10 -10 -9 -9 -9 -8 -8 -7 -7 -7 -7 -6 -6 -6 -6 -6 -5 -5 -5 -5 -5 -5 -4 -4 -4 -4 -3 -3 -3 -2 -2 -2 ---------- Run | Jun Mat Min Mat Min Exi Min Mat Fac Low Low Zio Pro Fac Low Low Dat Pro Fac Ext Cet Arc Hub Fac Upp Upp War Pro Res Tes Res Qua Sec Machines Disabled 37 | . . 1 1 . . . . . . . . . 1 . 1 1 . . 2 . . 9 . 1 . 1 . 1 4 . 4 10 Max in Single Turn 8 | . . 1 1 . . . . . . . . . 1 . 1 1 . . 2 . . 8 . 1 . . . 1 1 . 1 1 Garrison Access 2 | . . . . . . . . . . . . . . . . . . . . . . . . . . . . 2 . . . . Network Hub 1 | . . . . . . . . . . . . . . . . . . . . . . 1 . . . . . . . . . . Energy Cycler 2 | . . . . . . . . . . . . . . . . . . . 2 . . . . . . . . . . . . . Machines Repaired . | . . . . . . . . . . . . . . . . . . . . . . . . . . . . . . . . . Machines Sabotaged . | . . . . . . . . . . . . . . . . . . . . . . . . . . . . . . . . . Overloaded Fab Kills . | . . . . . . . . . . . . . . . . . . . . . . . . . . . . . . . . . Hacking | -11 -10 -10 -9 -9 -9 -8 -8 -7 -7 -7 -7 -6 -6 -6 -6 -6 -5 -5 -5 -5 -5 -5 -4 -4 -4 -4 -3 -3 -3 -2 -2 -2 --------- Run | Jun Mat Min Mat Min Exi Min Mat Fac Low Low Zio Pro Fac Low Low Dat Pro Fac Ext Cet Arc Hub Fac Upp Upp War Pro Res Tes Res Qua Sec Machines Accessed 58 | . 4 1 1 . 2 . 6 2 2 . . . 4 . 1 4 . 3 11 . . 4 2 . . 3 1 7 . . . . Terminals 35 | . 4 . 1 . . . 5 1 . . . . 2 . 1 . . 1 11 . . 4 1 . . . 1 3 . . . . Fabricators 6 | . . . . . . . . 1 . . . . 1 . . . . 2 . . . . 1 . . . . 1 . . . . Repair Stations . | . . . . . . . . . . . . . . . . . . . . . . . . . . . . . . . . . Recycling Units . | . . . . . . . . . . . . . . . . . . . . . . . . . . . . . . . . . Scanalyzers 2 | . . . . . . . . . . . . . 1 . . . . . . . . . . . . . . 1 . . . . Garrison Access 3 | . . . . . . . 1 . . . . . . . . . . . . . . . . . . . . 2 . . . . Total Hacks 194 | . 14 1 6 . 2 . 28 7 5 . . . 11 . 3 27 . 9 25 . . 8 7 . . 13 7 21 . . . . Successful 152 | . 10 1 3 . 2 . 22 4 5 . . . 6 . 3 27 . 7 23 . . 4 4 . . 13 7 11 . . . . Failed 41 | . 3 . 3 . . . 6 3 . . . . 5 . . . . 2 2 . . 4 3 . . . . 10 . . . . Catastrophic 8 | . . . . . . . . 2 . . . . . . . . . . . . . 2 1 . . . . 3 . . . . Database Lockouts 1 | . 1 . . . . . . . . . . . . . . . . . . . . . . . . . . . . . . . Manual 87 | . 14 . 8 . 1 . 16 4 . . . . 6 . . . . 3 12 . . 7 6 . . 1 . 9 . . . . Terminals 115 | . 14 . 6 . . . 25 3 . . . . 7 . 3 . . 2 25 . . 8 4 . . . 7 11 . . . . Fabricators 19 | . . . . . . . . 4 . . . . 3 . . . . 7 . . . . 3 . . . . 2 . . . . Repair Stations . | . . . . . . . . . . . . . . . . . . . . . . . . . . . . . . . . . Recycling Units . | . . . . . . . . . . . . . . . . . . . . . . . . . . . . . . . . . Scanalyzers 6 | . . . . . . . . . . . . . 1 . . . . . . . . . . . . . . 5 . . . . Garrison Access 6 | . . . . . . . 3 . . . . . . . . . . . . . . . . . . . . 3 . . . . Terminal Hacks 93 | . 4 1 2 . 2 . 14 1 5 . . . 1 . 3 27 . . 13 . . . . . . 13 7 . . . . . Record 34 | . . . . . 1 . . . 4 . . . . . 3 11 . . . . . . . . . 8 7 . . . . . Part Schematic 9 | . . . . . . . . . . . . . . . . 8 . . 1 . . . . . . . . . . . . . Robot Schematic 5 | . . . . . . . . . . . . . . . . 5 . . . . . . . . . . . . . . . . Robot Analysis 6 | . 1 . 1 . . . 3 . . . . . . . . . . . 1 . . . . . . . . . . . . . Prototype ID Bank 12 | . . . . . . . 1 . . . . . . . . 3 . . 3 . . . . . . 5 . . . . . . Open Door 5 | . . 1 . . . . . . 1 . . . . . . . . . 3 . . . . . . . . . . . . . Branch Access Points 2 | . . . 1 . . . . . . . . . 1 . . . . . . . . . . . . . . . . . . . Emergency Access Points 1 | . . . . . . . 1 . . . . . . . . . . . . . . . . . . . . . . . . . Terminal Index 2 | . 1 . . . . . . . . . . . . . . . . . 1 . . . . . . . . . . . . . Alert Level 3 | . . . . . . . 1 . . . . . . . . . . . 2 . . . . . . . . . . . . . Unreport Threat 1 | . . . . . . . 1 . . . . . . . . . . . . . . . . . . . . . . . . . Locate Traps 6 | . 1 . . . . . 2 1 . . . . . . . . . . 2 . . . . . . . . . . . . . Maintenance Status 1 | . . . . . . . 1 . . . . . . . . . . . . . . . . . . . . . . . . . Transport Status 1 | . . . . . . . 1 . . . . . . . . . . . . . . . . . . . . . . . . . Recall Reinforcements 1 | . 1 . . . . . . . . . . . . . . . . . . . . . . . . . . . . . . . Hauler Manifests 1 | . . . . . . . 1 . . . . . . . . . . . . . . . . . . . . . . . . . Registered Prototypes 1 | . . . . . . . 1 . . . . . . . . . . . . . . . . . . . . . . . . . Zone Layout 1 | . . . . . . . 1 . . . . . . . . . . . . . . . . . . . . . . . . . Derelict Proto ID Bank 1 | . . . . . 1 . . . . . . . . . . . . . . . . . . . . . . . . . . . Fabricator Hacks 11 | . . . . . . . . 1 . . . . 3 . . . . 5 . . . . 1 . . . . 1 . . . . Network Status 5 | . . . . . . . . 1 . . . . 1 . . . . 1 . . . . 1 . . . . 1 . . . . Load Schematic 3 | . . . . . . . . . . . . . 1 . . . . 2 . . . . . . . . . . . . . . Build 3 | . . . . . . . . . . . . . 1 . . . . 2 . . . . . . . . . . . . . . Repair Station Hacks . | . . . . . . . . . . . . . . . . . . . . . . . . . . . . . . . . . Recycling Unit Hacks . | . . . . . . . . . . . . . . . . . . . . . . . . . . . . . . . . . Scanalyzer 5 | . . . . . . . . . . . . . . . . . . . . . . . . . . . . 5 . . . . Insert Component 2 | . . . . . . . . . . . . . . . . . . . . . . . . . . . . 2 . . . . Analyze 3 | . . . . . . . . . . . . . . . . . . . . . . . . . . . . 3 . . . . Garrison Access Hacks 2 | . . . . . . . . . . . . . . . . . . . . . . . . . . . . 2 . . . . Seal Access 2 | . . . . . . . . . . . . . . . . . . . . . . . . . . . . 2 . . . . Unauthorized Hacks 40 | . 6 . 1 . . . 8 2 . . . . 2 . . . . 2 10 . . 4 3 . . . . 2 . . . . Terminals 35 | . 6 . 1 . . . 7 1 . . . . 2 . . . . 1 10 . . 4 2 . . . . 1 . . . . Track 2 | . . . . . . . 2 . . . . . . . . . . . . . . . . . . . . . . . . . Assimilate 4 | . 1 . . . . . 1 . . . . . . . . . . . 1 . . 1 . . . . . . . . . . Botnet 18 | . 4 . 1 . . . 2 1 . . . . 1 . . . . 1 5 . . 1 1 . . . . 1 . . . . Disrupt 4 | . . . . . . . 1 . . . . . . . . . . . 3 . . . . . . . . . . . . . Operators 5 | . 1 . . . . . 1 . . . . . 1 . . . . . 1 . . . 1 . . . . . . . . . Sabotage 2 | . . . . . . . . . . . . . . . . . . . . . . 2 . . . . . . . . . . Fabricators 4 | . . . . . . . . 1 . . . . . . . . . 1 . . . . 1 . . . . 1 . . . . Liberate 4 | . . . . . . . . 1 . . . . . . . . . 1 . . . . 1 . . . . 1 . . . . Repair Stations . | . . . . . . . . . . . . . . . . . . . . . . . . . . . . . . . . . Recycling Units . | . . . . . . . . . . . . . . . . . . . . . . . . . . . . . . . . . Scanalyzers . | . . . . . . . . . . . . . . . . . . . . . . . . . . . . . . . . . Garrison Access 1 | . . . . . . . 1 . . . . . . . . . . . . . . . . . . . . . . . . . Reprogram 1 | . . . . . . . 1 . . . . . . . . . . . . . . . . . . . . . . . . . Data Cores Recovered 1 | . . . 1 . . . . . . . . . . . . . . . . . . . . . . . . . . . . . Used . | . . . . . . . . . . . . . . . . . . . . . . . . . . . . . . . . . Hacking Detections 37 | . 3 . 1 . . . 5 2 . . . . 4 . 1 . . 3 9 . . 2 2 . . . 1 4 . . . . Full Trace Events 5 | . . . . . . . . . . . . . 1 . 1 . . 2 . . . . 1 . . . . . . . . . Feedback Events . | . . . . . . . . . . . . . . . . . . . . . . . . . . . . . . . . . Feedback Blocked . | . . . . . . . . . . . . . . . . . . . . . . . . . . . . . . . . . Robot Schematics Acquired 8 | . . . . . . . . . . . 3 . . . . 5 . . . . . . . . . . . . . . . . Robots Built . | . . . . . . . . . . . . . . . . . . . . . . . . . . . . . . . . . Authchips . | . . . . . . . . . . . . . . . . . . . . . . . . . . . . . . . . . Time . | . . . . . . . . . . . . . . . . . . . . . . . . . . . . . . . . . Total Robot Build Rating . | . . . . . . . . . . . . . . . . . . . . . . . . . . . . . . . . . Part Schematics Acquired 27 | . . . . . . . . . . . 16 . . . . 8 . . 1 . . . . . . . . 2 . . . . Parts Built 4 | . . . . . . . . . . . . . 1 . . . . 3 . . . . . . . . . . . . . . Authchips . | . . . . . . . . . . . . . . . . . . . . . . . . . . . . . . . . . Time 263 | . . . . . . . . . . . . . 84 . . . . 179 . . . . . . . . . . . . . . Total Part Build Rating 22 | . . . . . . . . . . . . . 6 . . . . 16 . . . . . . . . . . . . . . Parts Repaired . | . . . . . . . . . . . . . . . . . . . . . . . . . . . . . . . . . Time . | . . . . . . . . . . . . . . . . . . . . . . . . . . . . . . . . . Parts Recycled . | . . . . . . . . . . . . . . . . . . . . . . . . . . . . . . . . . Recycled Matter . | . . . . . . . . . . . . . . . . . . . . . . . . . . . . . . . . . Retrieved Matter . | . . . . . . . . . . . . . . . . . . . . . . . . . . . . . . . . . Retrieved Components . | . . . . . . . . . . . . . . . . . . . . . . . . . . . . . . . . . Parts Scanalyzed 2 | . . . . . . . . . . . . . . . . . . . . . . . . . . . . 2 . . . . Part Schematics Acquired 2 | . . . . . . . . . . . . . . . . . . . . . . . . . . . . 2 . . . . Parts Damaged . | . . . . . . . . . . . . . . . . . . . . . . . . . . . . . . . . . Bothacking | -11 -10 -10 -9 -9 -9 -8 -8 -7 -7 -7 -7 -6 -6 -6 -6 -6 -5 -5 -5 -5 -5 -5 -4 -4 -4 -4 -3 -3 -3 -2 -2 -2 ------------ Run | Jun Mat Min Mat Min Exi Min Mat Fac Low Low Zio Pro Fac Low Low Dat Pro Fac Ext Cet Arc Hub Fac Upp Upp War Pro Res Tes Res Qua Sec Used RIF Installer . | . . . . . . . . . . . . . . . . . . . . . . . . . . . . . . . . . Robots Hacked 4 | . . . . . . . . 1 1 . . . . . . . . . . . . 1 . . . . . . . 1 . . Non-combat 4 | . . . . . . . . 1 1 . . . . . . . . . . . . 1 . . . . . . . 1 . . Combat . | . . . . . . . . . . . . . . . . . . . . . . . . . . . . . . . . . Robot Hacks Applied 4 | . . . . . . . . 1 1 . . . . . . . . . . . . 1 . . . . . . . 1 . . parse_system 4 | . . . . . . . . 1 1 . . . . . . . . . . . . 1 . . . . . . . 1 . . Relay Couplers Released . | . . . . . . . . . . . . . . . . . . . . . . . . . . . . . . . . . Fabnet Peak Effective % . | . . . . . . . . . . . . . . . . . . . . . . . . . . . . . . . . . Robots Rewired 11 | . . . . . . . . . . . . . . . . . . . 3 . . . . 3 . 5 . . . . . . Allies Hacked . | . . . . . . . . . . . . . . . . . . . . . . . . . . . . . . . . . Hacks Repelled . | . . . . . . . . . . . . . . . . . . . . . . . . . . . . . . . . . Allies | -11 -10 -10 -9 -9 -9 -8 -8 -7 -7 -7 -7 -6 -6 -6 -6 -6 -5 -5 -5 -5 -5 -5 -4 -4 -4 -4 -3 -3 -3 -2 -2 -2 -------- Run | Jun Mat Min Mat Min Exi Min Mat Fac Low Low Zio Pro Fac Low Low Dat Pro Fac Ext Cet Arc Hub Fac Upp Upp War Pro Res Tes Res Qua Sec Total Allies 22 | . 1 . . 3 . . 1 . . . . . . . . . . . 8 . . 1 . 3 . 5 . . . . . . Largest Group 7 | . 1 1 1 3 . . 1 . . . . . . . . . . . 7 . . 1 . 3 3 5 2 2 . . . . Highest-Rated Group 279 | . 10 10 10 40 . . 10 . . . . . . . . . . . 183 . . 10 . 114 114 279 121 121 . . . . Highest-Rated Ally 65 | . 10 10 10 16 . . 10 . . . . . . . . . . . 31 . . 10 . 38 38 65 65 65 . . . . Total Orders 8 | . 2 2 2 . . . . . . . . . . . . . . . . . . . . . . 2 . . . . . . STAY 4 | . 1 1 1 . . . . . . . . . . . . . . . . . . . . . . 1 . . . . . . FOLLOW 4 | . 1 1 1 . . . . . . . . . . . . . . . . . . . . . . 1 . . . . . . Ally Attacks 158 | . . . . 5 . . . . . . . . . . . . . . 73 . . . . 4 13 53 7 3 . . . . Total Damage 5238 | . . . . 66 . . . . . . . . . . . . . . 1637 . . . . 134 297 2602 300 202 . . . . Kills 35 | . . . . . . . . . . . . . . . . . . . 9 . . . . 2 4 18 2 . . . . . Allies Corrupted . | . . . . . . . . . . . . . . . . . . . . . . . . . . . . . . . . . Allies Melted 1 | . . . . . . . . . . . . . . . . . . . . . . . . . . . . . . 1 . . Intel | -11 -10 -10 -9 -9 -9 -8 -8 -7 -7 -7 -7 -6 -6 -6 -6 -6 -5 -5 -5 -5 -5 -5 -4 -4 -4 -4 -3 -3 -3 -2 -2 -2 ------- Run | Jun Mat Min Mat Min Exi Min Mat Fac Low Low Zio Pro Fac Low Low Dat Pro Fac Ext Cet Arc Hub Fac Upp Upp War Pro Res Tes Res Qua Sec Robot Analysis Total 6 | . 1 . 1 . . . 3 . . . . . . . . . . . 1 . . . . . . . . . . . . . Derelict Logs Recovered 16 | . . 2 . 1 . . . . 1 3 3 . . 2 1 . 1 . . . . . . 2 . . . . . . . . Drone Launches . | . . . . . . . . . . . . . . . . . . . . . . . . . . . . . . . . . Drone Recoveries . | . . . . . . . . . . . . . . . . . . . . . . . . . . . . . . . . . Decoded 0b10 Intel 8 | . . . . . . . . . . . . . 8 . . . . . . . . . . . . . . . . . . . Traps 3 | . . . . . . . . . . . . . 3 . . . . . . . . . . . . . . . . . . . Items 4 | . . . . . . . . . . . . . 4 . . . . . . . . . . . . . . . . . . . Exits 1 | . . . . . . . . . . . . . 1 . . . . . . . . . . . . . . . . . . . Exploration | -11 -10 -10 -9 -9 -9 -8 -8 -7 -7 -7 -7 -6 -6 -6 -6 -6 -5 -5 -5 -5 -5 -5 -4 -4 -4 -4 -3 -3 -3 -2 -2 -2 ------------- Run | Jun Mat Min Mat Min Exi Min Mat Fac Low Low Zio Pro Fac Low Low Dat Pro Fac Ext Cet Arc Hub Fac Upp Upp War Pro Res Tes Res Qua Sec Turns Passed 11767 | . 1128 1031 615 326 458 342 232 341 228 68 327 64 531 188 100 115 170 673 887 72 30 251 424 260 246 635 295 457 184 646 141 302 Spaces Moved 15310 | 1 589 556 314 310 423 391 358 651 536 224 1088 212 788 463 248 156 264 619 1030 81 38 310 697 411 331 884 365 631 441 780 436 684 Core 1139 | . . . 1 259 231 . 28 178 . . . . . . . . 7 12 169 . . . . . . . . . 5 191 . 58 Treads 1419 | . 562 556 282 19 . . . . . . . . . . . . . . . . . . . . . . . . . . . . Legs 28 | 1 27 . . . . . . . . . . . . . . . . . . . . . . . . . . . . . . . Wheels 608 | . . . . 32 . . . . . . . . . . . . . 576 . . . . . . . . . . . . . . Hover 5555 | . . . 31 . 192 391 330 473 38 . . . 788 463 248 156 257 31 733 81 38 251 697 178 . . . . . 179 . . Flight 6533 | . . . . . . . . . 498 224 1088 212 . . . . . . 128 . . 59 . 233 331 884 365 631 436 410 436 598 Fastest Speed 22 | 120 120 160 38 50 50 60 50 30 23 23 29 23 24 24 24 33 45 50 35 80 80 40 43 27 24 22 27 25 28 23 23 23 Average Speed 55 | 120 158 160 149 59 102 60 60 43 29 28 29 27 39 37 33 42 50 97 62 80 80 58 50 36 26 26 27 27 31 60 23 29 Slowest Speed 400 | 120 160 160 400 160 240 60 150 50 42 29 29 29 42 38 38 101 100 100 150 80 80 80 52 120 27 104 27 102 50 150 24 105 Overloaded Moves 336 | . . . . . . . . 23 24 16 . 62 24 8 77 40 62 . . . . . . . . . . . . . . . Propulsion Burnouts . | . . . . . . . . . . . . . . . . . . . . . . . . . . . . . . . . . Robots Hopped 30 | . . . . . . . . . 2 . . . . . . . . . . . . . . . . 2 . . 25 1 . . Cave-ins Triggered 3 | . . . . . . . . . . . . . . . . . . . 2 . . . . . . . . . . . . 1 Spacefolds 9 | . . . . . . . . . . . . . . . . . . . . . . . . . . . . . . . . 9 Exploration Rate (%) 50 | 2 95 97 27 42 70 64 51 16 65 40 83 45 21 65 48 80 38 20 85 49 61 36 17 53 35 82 58 20 58 17 57 55 Regions Visited 32 Branch Regions 23 Pre-discovered Areas 7 | . . . . . 1 . . . . . 2 . . . 1 1 . . . . . . . 1 . . 1 . . . . . Known Exits Taken 14 | . . . 1 . . . 1 1 1 1 1 1 1 1 1 . 1 1 . . . . . . . . . . . 1 1 . Unknown Exits Taken 18 | 1 1 1 . 1 1 1 . . . . . . . . . 1 . . 1 1 1 1 1 1 1 1 1 1 1 . . . Scrap Searched 16 | . . 1 . . . 1 . . 2 1 3 . . 1 1 . 2 . . . . . . 1 1 . 2 . . . . . Spaces Dug 141 | . . . . . . . . . . . . . 4 . 1 . . 11 61 . . 7 5 . 2 8 . 22 9 1 3 7 Terrain Destroyed 527 | . . . . . . . . 1 . . . 15 4 . 1 . . 11 282 . . 156 5 . 2 8 . 22 9 1 3 7 Melee 81 | . . . . . . . . . . . . . 4 . 1 . . 11 5 . . 7 5 . 2 5 . 22 9 1 3 6 Projectile 13 | . . . . . . . . 1 . . . . . . . . . . 8 . . . . . . 3 . . . . . 1 AOE 433 | . . . . . . . . . . . . 15 . . . . . . 269 . . 149 . . . . . . . . . . Terrain Rammed . | . . . . . . . . . . . . . . . . . . . . . . . . . . . . . . . . . Walls Destroyed . | . . . . . . . . . . . . . . . . . . . . . . . . . . . . . . . . . Machines Disabled . | . . . . . . . . . . . . . . . . . . . . . . . . . . . . . . . . . Actions | -11 -10 -10 -9 -9 -9 -8 -8 -7 -7 -7 -7 -6 -6 -6 -6 -6 -5 -5 -5 -5 -5 -5 -4 -4 -4 -4 -3 -3 -3 -2 -2 -2 --------- Run | Jun Mat Min Mat Min Exi Min Mat Fac Low Low Zio Pro Fac Low Low Dat Pro Fac Ext Cet Arc Hub Fac Upp Upp War Pro Res Tes Res Qua Sec Total 17849 | . 702 652 412 448 445 498 373 702 581 226 1097 216 997 470 254 184 291 664 1176 87 37 353 748 506 480 1274 551 865 442 942 457 719 Wait 1661 | . 24 58 20 137 8 106 1 17 14 1 . . 173 3 . 11 14 14 33 7 . 9 22 69 141 306 178 163 . 127 2 3 Move 15216 | . 588 555 313 309 422 390 357 650 531 223 1087 211 787 462 247 155 263 618 1028 80 37 309 697 410 330 880 364 631 405 777 435 665 Hop 14 | . . . . . . . . . 2 . . . . . . . . . . . . . . . . 1 . . 10 1 . . Pick Up 86 | . 15 2 10 . 3 . 2 8 1 . 1 1 8 1 . . 2 2 3 . . 2 3 . . 1 . 6 1 5 3 6 Fast Attach 161 | . 6 1 12 2 3 . 5 7 3 2 4 . 4 . 1 . 1 7 21 . . 9 8 5 2 19 2 6 3 14 7 7 Attach 74 | . 3 1 1 . 3 1 2 6 3 . . 1 3 . . 1 2 5 10 . . 2 2 . . 3 . 6 3 6 . 10 Detach 51 | . . . 4 . 1 1 2 2 3 . 1 . 2 . . 2 1 3 6 . . 1 1 . . 9 . 5 1 4 1 1 Swap 26 | . 3 2 4 . . . . 1 2 . . 1 3 1 1 . . . . . . 2 . . . 6 . . . . . . Drop 143 | . 16 4 20 . 4 . 4 6 1 . 3 1 7 . . 1 1 2 4 . . 3 4 2 1 30 1 13 5 3 2 5 Fire 142 | . 46 21 26 . 1 . . 4 20 . . 1 . . . . . . 14 . . 1 . . . 7 . . . . . 1 Melee 245 | . . . . . . . . 1 1 . 1 . 10 3 5 14 7 13 49 . . 15 11 9 6 12 6 35 14 5 7 21 Ram . | . . . . . . . . . . . . . . . . . . . . . . . . . . . . . . . . . Kick . | . . . . . . . . . . . . . . . . . . . . . . . . . . . . . . . . . Crush 11 | . 1 8 2 . . . . . . . . . . . . . . . . . . . . . . . . . . . . . Escape Stasis 1 | . . . . . . . . . . . . . . . . . . . 1 . . . . . . . . . . . . . Rewire 18 | . . . . . . . . . . . . . . . . . . . 7 . . . . 11 . . . . . . . . Trap . | . . . . . . . . . . . . . . . . . . . . . . . . . . . . . . . . . Miscellaneous . | . . . . . . . . . . . . . . . . . . . . . . . . . . . . . . . . . Route ------- -11/Junkyard -10/Materials (discovered 5 exits: *Mat x3 / *Min x2) -10/Mines (discovered 2 exits: *Mat x2) -9/Materials (discovered 2 exits: *Min x2) -9/Mines (discovered 2 exits: *Mat / *Exi) -9/Exiles (discovered 2 exits: [*Min x2]) -8/Mines -8/Materials (discovered 3 exits: *Fac / *Sto x2) -7/Factory -7/Lower Caves -7/Lower Caves (discovered 2 exits: Fac / *Zio) -7/Zion (discovered 2 exits: Dee / *Pro) -6/Proximity Caves -6/Factory (discovered 5 exits: *Fac x3 / *Low x2) -6/Lower Caves (discovered 2 exits: *Low / *Dat) -6/Lower Caves (discovered 2 exits: Fac / *Dat) -6/Data Miner -5/Proximity Caves -5/Factory (discovered 2 exits: Upp / *Ext) -5/Extension (discovered 3 exits: *Fac x2 / [*Cet]) -5/Cetus -5/Archives -5/Hub_04(d) -4/Factory -4/Upper Caves -4/Upper Caves -4/Warlord -3/Proximity Caves -3/Research -3/Testing -2/Research -2/Quarantine -2/Section 7 History --------- Turn | Location | Event 1 | -11/Junkyard | Discovered new exit (range 0) 1 | -11/Junkyard | Entered Materials 226 | -10/Materials | Discovered new exit (range 4) 319 | -10/Materials | Build established: Mutant 349 | -10/Materials | Discovered new exit (range 14) 366 | -10/Materials | Central database locked down 439 | -10/Materials | Discovered new exit (range 12) 768 | -10/Materials | Discovered new exit (range 15) 842 | -10/Materials | Discovered new exit (range 9) 1129 | -10/Materials | Entered Mines 1129 | -10/Mines | Accompanied by 1 ally 1160 | -10/Mines | Core integrity fell below 50% 1406 | -10/Mines | Joined a pair of Derelicts in attacking an 0b10 outpost 1588 | -10/Mines | Discovered new exit (range 7) 1792 | -10/Mines | Discovered new exit (range 15) 2029 | -10/Mines | Met a Derelict who couldn't figure out how to use a Trap Extractor 2160 | -10/Mines | Entered Materials 2160 | -9/Materials | Accompanied by 1 ally 2160 | -9/Materials | Evolved 2 slots: Propulsion x2 2397 | -9/Materials | Discovered new exit (range 8) 2663 | -9/Materials | Identified exit to Mines 2742 | -9/Materials | Build established: Scavenger-Mutant 2775 | -9/Materials | Entered Mines 2778 | -9/Mines | Met a Derelict bent on vengeance 2786 | -9/Mines | Assembled infested the area 2791 | -9/Mines | Assisted by a Guerilla fighting off Assembled 2806 | -9/Mines | Released all parts (9) 2821 | -9/Mines | Discovered new exit (range 5) 2837 | -9/Mines | Assisted by bots powering up and referring to "LRC-V3" 2943 | -9/Mines | Core integrity fell below 50% 3087 | -9/Mines | Deemed a non-threat by the Exiles lab entrance 3099 | -9/Mines | Discovered new exit (range 5) 3101 | -9/Mines | Entered Exiles 3104 | -9/Exiles | Build established: Mutant 3109 | -9/Exiles | Discovered new exit (range 15) 3114 | -9/Exiles | Met 8R-AWN 3123 | -9/Exiles | Met EX-HEX 3137 | -9/Exiles | Met EX-BIN 3144 | -9/Exiles | Met EX-DEC 3146 | -9/Exiles | Learned location of Zion (-7) 3203 | -9/Exiles | Aligned with FarCom system 3204 | -9/Exiles | Given EX-Vault access code 3215 | -9/Exiles | Opened EX-Vault 3219 | -9/Exiles | Found Firepult 3288 | -9/Exiles | Found YOLO Cannon 3358 | -9/Exiles | Warned to stay clear of 0b10 Research branches 3507 | -9/Exiles | Discovered new exit (range 14) 3559 | -9/Exiles | Left Exiles lab with Firepult 3559 | -9/Exiles | Entered Mines 3811 | -8/Mines | Build established: Hacker-Mutant 3891 | -8/Mines | Discovered new exit (range 15) 3901 | -8/Mines | Entered Materials 3901 | -8/Materials | Evolved 2 slots: Utility x2 3902 | -8/Materials | Identified exit to Storage 4130 | -8/Materials | Discovered new exit (range 3) 4132 | -8/Materials | Identified exit to Factory 4133 | -8/Materials | Entered Factory 4133 | -7/Factory | Evolved 2 slots: Power x1, Utility x1 4335 | -7/Factory | Discovered new exit (range 7) 4337 | -7/Factory | Identified exit to Lower Caves 4411 | -7/Factory | Build established: Mutant 4474 | -7/Factory | Entered Lower Caves 4599 | -7/Lower Caves | Learned 8 Factory zone layouts 4600 | -7/Lower Caves | Learned Armory trap positions 4600 | -7/Lower Caves | Learned Factory emergency access door positions 4699 | -7/Lower Caves | Discovered new exit (range 10) 4701 | -7/Lower Caves | Attracted the attention of an 0b10 checkpoint 4701 | -7/Lower Caves | Lost 3 parts (1p2w) 4701 | -7/Lower Caves | Identified exit to Lower Caves 4702 | -7/Lower Caves | Entered another Lower Caves area 4716 | -7/Lower Caves | Learned location of 1 exit from Factory 4735 | -7/Lower Caves | Identified exit to Factory 4755 | -7/Lower Caves | Learned Factory stockpile data 4766 | -7/Lower Caves | Discovered new exit (range 14) 4770 | -7/Lower Caves | Identified exit to Zion 4770 | -7/Lower Caves | Entered Zion 4783 | -7/Zion | Build established: Sprinter 4786 | -7/Zion | System corruption cleaned by Quarantine Array 4821 | -7/Zion | Discovered new exit (range 8) 4823 | -7/Zion | Identified exit to Proximity Caves 4868 | -7/Zion | Learned Factory interactive machine intel 4892 | -7/Zion | Found Prototype Special Weapon 4892 | -7/Zion | Identified RU-N14's Throwing Claymores 4894 | -7/Zion | Found RU-N14's Throwing Claymores 4944 | -7/Zion | Received a hallucinogenic algorithm 4953 | -7/Zion | Identified exit to Deep Caves 5006 | -7/Zion | Learned location of Warlord (-4) 5097 | -7/Zion | Entered Proximity Caves 5152 | -6/Proximity Caves | Spotter reported a threat 5159 | -6/Proximity Caves | Discovered exit to Factory (range 11) 5161 | -6/Proximity Caves | Entered Factory 5161 | -6/Factory | Evolved 2 slots: Power x1, Propulsion x1 5162 | -6/Factory | Identified exit to Factory 5166 | -6/Factory | Loaded intel: 52 interactive machine locations 5184 | -6/Factory | Discovered new exit (range 14) 5331 | -6/Factory | Identified exit to Lower Caves 5503 | -6/Factory | Fabricated Tiamat Missile Launcher? 5512 | -6/Factory | Build established: Hacker-Mutant 5692 | -6/Factory | Entered Lower Caves 5693 | -6/Lower Caves | Encountered a Warlord checkpoint 5780 | -6/Lower Caves | Identified exit to Lower Caves 5790 | -6/Lower Caves | A Derelict revealed a hidden shortcut to meet someone special 5832 | -6/Lower Caves | Learned Factory emergency access door positions 5880 | -6/Lower Caves | Entered another Lower Caves area 5884 | -6/Lower Caves | Learned Factory stockpile data 5887 | -6/Lower Caves | Identified exit to Data Miner 5950 | -6/Lower Caves | Attracted the attention of an 0b10 checkpoint 5980 | -6/Lower Caves | Entered Data Miner 5980 | -6/Data Miner | Discovered new exit (range 7) 5988 | -6/Data Miner | Met Data Miner 6004 | -6/Data Miner | Learned location of Section 7 (-2) 6004 | -6/Data Miner | Acquired the access code to Warlord's prototype stash 6009 | -6/Data Miner | Received God Mode back door access code from Data Miner 6025 | -6/Data Miner | Data Conduit disabled 6095 | -6/Data Miner | Entered Proximity Caves 6122 | -5/Proximity Caves | Lost 4 parts (2p2n) 6170 | -5/Proximity Caves | Learned 4 Factory zone layouts 6232 | -5/Proximity Caves | Attracted the attention of an 0b10 checkpoint 6234 | -5/Proximity Caves | Spotted B-75 Beast 6235 | -5/Proximity Caves | Entered a huge 0b10 base via the front door 6255 | -5/Proximity Caves | Discovered exit to Factory (range 16) 6263 | -5/Proximity Caves | Core integrity fell below 50% 6265 | -5/Proximity Caves | Entered Factory 6265 | -5/Factory | Evolved 2 slots: Propulsion x1, Utility x1 6266 | -5/Factory | Identified exit to Upper Caves 6267 | -5/Factory | Identified exit to Extension 6290 | -5/Factory | Lost 5 parts (1p2n1u1w) 6692 | -5/Factory | Fabricated Exp. Cesium-ion Thruster? 6765 | -5/Factory | System corruption reached 10% 6795 | -5/Factory | Lost 4 parts (4u) 6847 | -5/Factory | Fabricated Lgt. Angular Momentum Engine? 6938 | -5/Factory | Entered Extension 7026 | -5/Extension | Rescued a captive Derelict 7085 | -5/Extension | Rescued a captive Derelict 7086 | -5/Extension | Rescued a captive Derelict 7271 | -5/Extension | Lost 4 parts (2p1u1w) 7291 | -5/Extension | Rescued a captive Derelict 7538 | -5/Extension | Search patrols dispatched 7579 | -5/Extension | Crushed by falling debris 7583 | -5/Extension | Crushed by falling debris 7584 | -5/Extension | System corruption reached 30% 7610 | -5/Extension | Energy Cycler disabled 7614 | -5/Extension | Lost 6 parts (1p3n2u) 7734 | -5/Extension | Core integrity fell below 50% 7752 | -5/Extension | Extracted ID and sensor layout for unrecognized location from A7's data core 7752 | -5/Extension | Spotted B-75 Beast 7754 | -5/Extension | Discovered new exit (range 15) 7804 | -5/Extension | Discovered new exit (range 16) 7805 | -5/Extension | Discovered new exit (range 15) 7825 | -5/Extension | Entered Cetus 7837 | -5/Cetus | Spotted Cetus Guard 7837 | -5/Cetus | Spotted Cetus Guard 7838 | -5/Cetus | Spotted Cetus Guard 7847 | -5/Cetus | Spotted Cetus Guard 7885 | -5/Cetus | Discovered new exit (range 16) 7897 | -5/Cetus | Entered Archives 7907 | -5/Archives | Met Zhirov 7913 | -5/Archives | Reinforcements dispatched to Archives 7915 | -5/Archives | Discovered new exit (range 16) 7927 | -5/Archives | Entered Hub_04(d) 8108 | -5/Hub_04(d) | Discovered new exit (range 5) 8143 | -5/Hub_04(d) | Network Hub disabled 8156 | -5/Hub_04(d) | Spotted Lightning 8163 | -5/Hub_04(d) | Spotted Lightning 8178 | -5/Hub_04(d) | Entered Factory 8178 | -4/Factory | Evolved 2 slots: Utility x2 8262 | -4/Factory | Lost 3 parts (2n1u) 8591 | -4/Factory | Discovered new exit (range 13) 8602 | -4/Factory | Entered Upper Caves 8649 | -4/Upper Caves | Learned Research terminal intel 8677 | -4/Upper Caves | Attacked by a delusional Derelict stockpiling Unaware 8761 | -4/Upper Caves | Encountered a Warlord checkpoint 8795 | -4/Upper Caves | Discovered new exit (range 10) 8862 | -4/Upper Caves | Entered another Upper Caves area 8862 | -4/Upper Caves | Accompanied by 3 allies 8984 | -4/Upper Caves | Build established: Scavenger-Sprinter 9107 | -4/Upper Caves | Discovered new exit (range 3) 9108 | -4/Upper Caves | Entered Warlord 9117 | -4/Warlord | System corruption cleaned by Quarantine Array 9164 | -4/Warlord | Found Prototype Device 9164 | -4/Warlord | Identified Minesniffer Drone Bay 9353 | -4/Warlord | Visited the Vortex Lab 9355 | -4/Warlord | Found Prototype Energy Cannon 9355 | -4/Warlord | Identified Vortex Cannon 9362 | -4/Warlord | Warlord's base attacked by MAIN.C 9376 | -4/Warlord | Met Warlord 9380 | -4/Warlord | Opened Warlord's prototype stash 9381 | -4/Warlord | Found Prototype Reactor 9381 | -4/Warlord | Identified Vortex Chain Reactor 9393 | -4/Warlord | Found Prototype Device 9393 | -4/Warlord | Identified Exp. Phase Shifter 9402 | -4/Warlord | Found Prototype Hackware 9402 | -4/Warlord | Identified Ghost Barrier 9579 | -4/Warlord | Warlord forces counterattacked 9679 | -4/Warlord | Spotted Striker 9681 | -4/Warlord | Spotted Striker 9690 | -4/Warlord | Allies destroyed Striker 9704 | -4/Warlord | Discovered new exit (range 15) 9743 | -4/Warlord | Entered Proximity Caves 9743 | -3/Proximity Caves | Accompanied by 2 allies 9789 | -3/Proximity Caves | Learned Armory trap positions 9789 | -3/Proximity Caves | Learned Research stockpile data 9789 | -3/Proximity Caves | Learned Extension garrison access intel 9846 | -3/Proximity Caves | Build established: Hacker-Sprinter 9996 | -3/Proximity Caves | Discovered new exit (range 9) 10038 | -3/Proximity Caves | Entered Research 10038 | -3/Research | Accompanied by 2 allies 10038 | -3/Research | Evolved 2 slots: Power x1, Utility x1 10040 | -3/Research | Loaded intel: 23 terminal locations 10101 | -3/Research | Spotted B-86 Titan 10319 | -3/Research | Found Fusion Bomb Launcher 10491 | -3/Research | Discovered new exit (range 7) 10495 | -3/Research | Entered Testing 10496 | -3/Testing | Maximum security lockdown engaged 10618 | -3/Testing | Found Prototype Slashing Weapon 10618 | -3/Testing | Identified Nanosword 10653 | -3/Testing | Discovered new exit (range 8) 10669 | -3/Testing | Found Ghost Barrier 10679 | -3/Testing | Entered Research 10679 | -2/Research | Warlord forces began assault on 0b10 10679 | -2/Research | Evolved 2 slots: Utility x2 10710 | -2/Research | Lost 13 parts (3p3n6u1w) 10740 | -2/Research | Found Enh. Force Lance 10752 | -2/Research | Discovered new exit (range 5) 10789 | -2/Research | Research machine network offline 10921 | -2/Research | Lost 4 parts (1n3u) 11143 | -2/Research | Build established: Mutant 11188 | -2/Research | Borebot progress halted 11193 | -2/Research | Borebot progress halted 11325 | -2/Research | Identified exit to Quarantine 11325 | -2/Research | Entered Quarantine 11326 | -2/Quarantine | Maximum security lockdown engaged 11350 | -2/Quarantine | Found Alien Slashing Weapon 11350 | -2/Quarantine | Identified Sigix Broadsword 11367 | -2/Quarantine | Found Alien Impact Weapon 11378 | -2/Quarantine | Found Alien Artifact 11378 | -2/Quarantine | Identified Terrabomb 11378 | -2/Quarantine | Used Terrabomb 11417 | -2/Quarantine | Found Alien Artifact 11417 | -2/Quarantine | Identified Core Reset Matrix 11417 | -2/Quarantine | Identified Core Stripper 11417 | -2/Quarantine | Used Core Reset Matrix 11421 | -2/Quarantine | Detected hypermatrix surge 11421 | -2/Quarantine | Sensed 13 artifacts in vicinity 11437 | -2/Quarantine | Found Subatomic Replicator 11448 | -2/Quarantine | Spotted Fortress 11464 | -2/Quarantine | Discovered new exit (range 6) 11465 | -2/Quarantine | Identified exit to Section 7 11466 | -2/Quarantine | Entered Section 7 11467 | -2/Section 7 | Maximum security lockdown engaged 11467 | -2/Section 7 | Sensed 19 artifacts in vicinity 11482 | -2/Section 7 | Found Integrity Redistributor 11509 | -2/Section 7 | Found Spacefold Activator 11528 | -2/Section 7 | Spotted S7 Guard 11533 | -2/Section 7 | Found Core Regenerator 11555 | -2/Section 7 | Found Integrated Dissipator 11555 | -2/Section 7 | Installed Integrated Dissipator, increased core heat dissipation (+20) 11566 | -2/Section 7 | Found Integrated Reactor 11566 | -2/Section 7 | Installed Integrated Reactor, increased core energy generation (+10) 11574 | -2/Section 7 | Found Integrated Dissipator 11587 | -2/Section 7 | Build established: Scavenger-Sprinter 11608 | -2/Section 7 | Crushed by falling debris 11610 | -2/Section 7 | Installed Integrated Dissipator, increased core heat dissipation (+20) 11639 | -2/Section 7 | Spotted Executioner 11639 | -2/Section 7 | Spotted Executioner 11648 | -2/Section 7 | Lost 5 parts (2n2u1w) 11649 | -2/Section 7 | Spotted B-99 Colossus 11667 | -2/Section 7 | Found Integrated Dissipator 11667 | -2/Section 7 | Installed Integrated Dissipator, increased core heat dissipation (+20) 11682 | -2/Section 7 | Lost 4 parts (2p2n) 11685 | -2/Section 7 | Used Subatomic Replicator to replicate LRC Boosters 11686 | -2/Section 7 | Found LRC Boosters 11686 | -2/Section 7 | Installed LRC Boosters, increased mass support (+10) 11687 | -2/Section 7 | Found LRC Matter Compressor 11687 | -2/Section 7 | Installed LRC Matter Compressor, increased matter storage capacity (+125) 11689 | -2/Section 7 | Installed LRC Boosters, increased mass support (+10) 11706 | -2/Section 7 | Core integrity fell below 50% 11706 | -2/Section 7 | Found Core Expander 11727 | -2/Section 7 | Spotted Striker 11727 | -2/Section 7 | Spotted Executioner 11730 | -2/Section 7 | Core integrity fell below 20% 11735 | -2/Section 7 | Used Core Regenerator, restored core integrity (+362) 11737 | -2/Section 7 | Spotted Alpha 7 11737 | -2/Section 7 | Spotted Alpha 7 11759 | -2/Section 7 | Lost 3 parts (2n1w) 11768 | -2/Section 7 | Destroyed by Y-72 Warden with Quantum Rifle Last Messages --------------- 11735_ Adv. Terrain Scan Processor blown off. 11735_ E-15 Imp destroyed. 11736_ Acquired Spacefold Activator. 11737_ Penetrated by Slug. 11737_ Drone sends a signal. 11739_ Penetrated by Slug. 11740_ Slug penetrates Thrusters. 11740_ Machine disabled. 11742_ Critical hit (Burn: +37). 11743_ Penetrated by Slug. 11753_ Construction Supplies damaged. 11754_ Penetrated by Slug. 11754_ Slug penetrates Construction Supplies. 11755_ Spacefolded through Sealed Heavy Doors. 11757_ Spacefolded through Wall. 11761_ Acquired Unknown Energy Cannon. 11761_ Identified Enh. Nova Cannon. 11762_ System corrupted: FCS attempts to trigger Enh. Nova Cannon. 11762_ System corrupted: Enh. Nova Cannon misfires. 11762_ Biostim Tank disabled. Map ----- +----------------------------------------------------+ | | | | | | | | | | | | | | | | | | | | | | | | | | | | | | | | | | | | | | | ????????????????????????###############??????????? | | ????????????????????????# #??????????? | | ????????????????????????# """ """ """ #???######## | | ????????????????????????# """ """ """ #???#""""""" | | ????????????????????????# """ " " """ #???#" | | ????????????????????????# #???#" | | ?????????????Y??????????#@ #?###" | | ????????????????????????#;#######+#+#####T# | | ????????????????????????## ???## " | | ?????????????????????????# + " | | ?????????????????????????? ??## ######### | | ?????????????????????????? *???#% #???????# | | ??????????????????????????? ??# #???????# | | ????????????????????##????? ??# #???????#" | | ????????????????????# ###/### #????????" | | ????????????????????+ * * Y #????????" | | ????????????????????# Y #????????" | | ????????????????????#* ! ###+### #????????" | | ????????????????????##?????????# #????????" | | ??????????????????g????????????# #????????" | | ???????????????????????????????# #????????" | | ???????????????????????????????# #????????" | | ??????? ??????????????????????# #????????" | | ???????? ????????????????????## ##???????" | | ???????? ???????????????????# ! #???????" | | ???????? ???????????????????#= #???????" | | ????????? ??????????????????# = #???????" | | ????????? ??????????????????#! #???????" | | ?????????? ??????????????????### ##???????" | | ?????????? ??????!?????????????# #????????" | | ??????????# ????????????????????#%#????????" | +----------------------------------------------------+ Best States ------------- Heat Dissipation 109 Coolant Potential 50 Energy Generation 99 Energy Capacity 840 Matter Stores 300 Matter Capacity 425 Sight Range 20 Terrain Scan Range 14 Terrain Scan Density 210 ECM Strength 2 Power Amplification 30 Additional Mass Support 12 Corruption Block 7 Propulsion Shielding 66 Phase Shifting 20 Evasion (%) 97 Melee Accuracy 16 Core Analysis 6 Recoil Reduction 4 Offensive Hacking 40 Defensive Hacking 40 Trap Extractor Capacity 6 Item Schematics ----------------- None Robot Schematics ------------------ None Fabricated ------------ Tiamat Missile Launcher | x1 | -6/Factory Exp. Cesium-ion Thruster | x1 | -5/Factory Lgt. Angular Momentum Engine | x2 | -5/Factory Alien Tech Used ----------------- Sigix Broadsword Terrabomb Core Reset Matrix Integrated Dissipator Integrated Reactor Spacefold Activator Subatomic Replicator LRC Boosters LRC Matter Compressor Core Regenerator Achievements -------------- None Challenges ------------ None Game ------ Seed ClaymoresServoTorch Manual? 0 Play Time 02:10:26 Cumulative 375.2 hours Start 2023.08.28 @ 07:04:43 End 2023.09.09 @ 05:45:06 Sessions 5 Manual Loads 0 Difficulty Rogue Special Mode None Game No. 552 Rogue 525 Adventurer 4 Explorer 23 Win Type - Total 20 Types 14/0/2/2/1/0/0/1/0 Lore% 81 Gallery% 91 Achievement% 83 Wizard Run 0 Options --------- ASCII 0 Keyboard 1 Movement Numpad Keybinds 0 Fullscreen 1 Font 18/SmallcapsGlow Map View 76x50 Tactical HUD 1 Map Filters NONE Filters NONE Steam 1 RUN: b67fbc55-5416-4b41-8a71-8e49ed487745